[Event "*** Titled Tuesday Blitz"]
[Site "Chess.com"]
[Date "2020.11.24"]
[Round "2"]
[White "Sacbutt"]
[Black "juancruzarias"]
[Result "0-1"]
[WhiteElo "2305"]
[BlackElo "2550"]
[TimeControl "180+1"]
[EndTime "10:33:21 PST"]
[Termination "juancruzarias won by checkmate"]

1. d4 {[%clk 0:03:00.9]} 1... Nf6 {[%clk 0:02:59.7]} 2. c4 {[%clk 0:03:01.4]}
2... c5 {[%clk 0:03:00.1]} 3. d5 {[%clk 0:03:01.2]} 3... e5 {[%clk 0:03:00.6]}
4. Nc3 {[%clk 0:03:01.1]} 4... d6 {[%clk 0:03:01.1]} 5. e4 {[%clk 0:03:01.7]}
5... Nbd7 {[%clk 0:03:01.6]} 6. Bd3 {[%clk 0:03:02.2]} 6... Be7 {[%clk 0:03:02]}
7. Nge2 {[%clk 0:03:02.8]} 7... Nf8 {[%clk 0:03:01.7]} 8. O-O {[%clk 0:03:03.4]}
8... Ng6 {[%clk 0:03:02.3]} 9. g3 {[%clk 0:03:03.8]} 9... h5 {[%clk 0:03:02.7]}
10. f4 {[%clk 0:03:02.6]} 10... h4 {[%clk 0:03:02]} 11. f5 {[%clk 0:03:02.8]}
11... Nf8 {[%clk 0:03:01.8]} 12. a3 {[%clk 0:02:56.6]} 12... Bd7 {[%clk
0:02:58.2]} 13. Bd2 {[%clk 0:02:54.1]} 13... N6h7 {[%clk 0:02:50.5]} 14. g4
{[%clk 0:02:50.4]} 14... Bg5 {[%clk 0:02:49.5]} 15. h3 {[%clk 0:02:49.1]} 15...
Bxd2 {[%clk 0:02:49.3]} 16. Qxd2 {[%clk 0:02:49.6]} 16... Qg5 {[%clk 0:02:50]}
17. Qxg5 {[%clk 0:02:44.4]} 17... Nxg5 {[%clk 0:02:50.9]} 18. Kg2 {[%clk
0:02:40.5]} 18... Ke7 {[%clk 0:02:34.8]} 19. b4 {[%clk 0:02:40]} 19... cxb4
{[%clk 0:02:30.8]} 20. axb4 {[%clk 0:02:39.5]} 20... Nfh7 {[%clk 0:02:25.8]} 21.
Rfc1 {[%clk 0:02:29.4]} 21... Rhc8 {[%clk 0:02:25.1]} 22. Nd1 {[%clk 0:02:11.3]}
22... Nf6 {[%clk 0:02:22]} 23. Nec3 {[%clk 0:02:04.6]} 23... a6 {[%clk
0:02:19.2]} 24. Ne3 {[%clk 0:01:54.5]} 24... b6 {[%clk 0:02:16.3]} 25. Na4
{[%clk 0:01:45]} 25... Bxa4 {[%clk 0:02:10.4]} 26. Rxa4 {[%clk 0:01:45.3]} 26...
Nfxe4 {[%clk 0:02:02.3]} 27. Rca1 {[%clk 0:01:32.2]} 27... a5 {[%clk 0:01:54.3]}
28. Bxe4 {[%clk 0:01:23]} 28... Nxe4 {[%clk 0:01:53]} 29. Kf3 {[%clk 0:01:23.3]}
29... Ng5+ {[%clk 0:01:49.5]} 30. Kg2 {[%clk 0:01:23.2]} 30... Rab8 {[%clk
0:01:39]} 31. Rb1 {[%clk 0:01:10.4]} 31... Kf6 {[%clk 0:01:32]} 32. Kh2 {[%clk
0:00:49.7]} 32... e4 {[%clk 0:01:18.8]} 33. bxa5 {[%clk 0:00:49.1]} 33... bxa5
{[%clk 0:01:18.3]} 34. Rb5 {[%clk 0:00:45.4]} 34... Rxb5 {[%clk 0:01:15]} 35.
cxb5 {[%clk 0:00:46.3]} 35... Rc3 {[%clk 0:01:15.5]} 36. Nc4 {[%clk 0:00:38.3]}
36... Rc2+ {[%clk 0:01:14.9]} 37. Kg1 {[%clk 0:00:34.3]} 37... Nf3+ {[%clk
0:00:50.1]} 38. Kf1 {[%clk 0:00:33.7]} 38... Rxc4 {[%clk 0:00:50.5]} 39. Rxa5
{[%clk 0:00:26.4]} 39... e3 {[%clk 0:00:48.9]} 40. Ke2 {[%clk 0:00:23.5]} 40...
Ne5 {[%clk 0:00:39.5]} 41. Kxe3 {[%clk 0:00:20.4]} 41... Rc3+ {[%clk 0:00:39.6]}
42. Kf4 {[%clk 0:00:19.1]} 42... Rxh3 {[%clk 0:00:40.5]} 43. g5+ {[%clk
0:00:18.4]} 43... Ke7 {[%clk 0:00:39.9]} 44. Ra7+ {[%clk 0:00:18.9]} 44... Kd8
{[%clk 0:00:39.8]} 45. Ra8+ {[%clk 0:00:19.4]} 45... Kc7 {[%clk 0:00:39.5]} 46.
Ra7+ {[%clk 0:00:19.1]} 46... Kb6 {[%clk 0:00:39.7]} 47. Ra6+ {[%clk 0:00:19.1]}
47... Kc5 {[%clk 0:00:38.9]} 48. Rc6+ {[%clk 0:00:18.2]} 48... Kxd5 {[%clk
0:00:39.1]} 49. Rc7 {[%clk 0:00:15.9]} 49... Rf3# {[%clk 0:00:38.7]} 0-1

[Event "*** Titled Tuesday Blitz"]
[Site "Chess.com"]
[Date "2020.11.24"]
[Round "2"]
[White "Orest_Vovk"]
[Black "Nitzan_Steinberg"]
[Result "0-1"]
[WhiteElo "2525"]
[BlackElo "2856"]
[TimeControl "180+1"]
[EndTime "10:33:22 PST"]
[Termination "Nitzan_Steinberg won by resignation"]

1. h4 {[%clk 0:03:00.9]} 1... d5 {[%clk 0:02:58.6]} 2. h5 {[%clk 0:02:51.7]}
2... e5 {[%clk 0:02:58]} 3. h6 {[%clk 0:02:51.6]} 3... Nxh6 {[%clk 0:02:57.4]}
4. d4 {[%clk 0:02:51.9]} 4... Nf5 {[%clk 0:02:51.1]} 5. dxe5 {[%clk 0:02:49.7]}
5... c5 {[%clk 0:02:48.3]} 6. e4 {[%clk 0:02:47.9]} 6... dxe4 {[%clk 0:02:40.9]}
7. Qxd8+ {[%clk 0:02:47.5]} 7... Kxd8 {[%clk 0:02:41.8]} 8. Nc3 {[%clk
0:02:44.7]} 8... Nd4 {[%clk 0:02:42.2]} 9. Bg5+ {[%clk 0:02:29.1]} 9... Be7
{[%clk 0:02:35.6]} 10. Bxe7+ {[%clk 0:02:28.4]} 10... Kxe7 {[%clk 0:02:36.5]}
11. O-O-O {[%clk 0:02:28.8]} 11... Nbc6 {[%clk 0:02:18]} 12. Nxe4 {[%clk
0:02:17.8]} 12... Bf5 {[%clk 0:02:17.2]} 13. f3 {[%clk 0:02:05.2]} 13... Bxe4
{[%clk 0:02:15.7]} 14. fxe4 {[%clk 0:02:05.1]} 14... Nxe5 {[%clk 0:02:15.8]} 15.
c3 {[%clk 0:02:02.4]} 15... Ne6 {[%clk 0:02:15.3]} 16. Nf3 {[%clk 0:02:01.7]}
16... Nxf3 {[%clk 0:02:13.4]} 17. gxf3 {[%clk 0:02:02.6]} 17... h6 {[%clk
0:02:13.1]} 18. Bc4 {[%clk 0:02:01.1]} 18... Nf4 {[%clk 0:02:06.8]} 19. Bd5
{[%clk 0:01:52.3]} 19... Rab8 {[%clk 0:02:03.7]} 20. Kd2 {[%clk 0:01:39.6]}
20... b6 {[%clk 0:01:57.5]} 21. Ke3 {[%clk 0:01:38.7]} 21... g5 {[%clk
0:01:57.5]} 22. e5 {[%clk 0:01:24.6]} 22... Rbd8 {[%clk 0:01:52.5]} 23. c4
{[%clk 0:01:21.5]} 23... Rd7 {[%clk 0:01:46.9]} 24. Ke4 {[%clk 0:01:19.7]} 24...
f6 {[%clk 0:01:38]} 25. Rde1 {[%clk 0:01:05.7]} 25... h5 {[%clk 0:01:24.1]} 26.
Kf5 {[%clk 0:01:03.1]} 26... Nxd5 {[%clk 0:01:24]} 27. exf6+ {[%clk 0:01:00.2]}
27... Kf7 {[%clk 0:01:23.7]} 28. cxd5 {[%clk 0:00:59.4]} 28... Rxd5+ {[%clk
0:01:24.6]} 29. Re5 {[%clk 0:00:55.8]} 29... Rxe5+ {[%clk 0:01:08.7]} 30. Kxe5
{[%clk 0:00:56.7]} 30... Kg6 {[%clk 0:01:07]} 31. f7 {[%clk 0:00:35]} 31... Rf8
{[%clk 0:01:02.5]} 32. f4 {[%clk 0:00:21.9]} 32... Rxf7 {[%clk 0:00:55.5]} 33.
fxg5 {[%clk 0:00:20.4]} 33... Rf2 {[%clk 0:00:54.5]} 34. Rb1 {[%clk 0:00:16.4]}
34... h4 {[%clk 0:00:51.6]} 35. a4 {[%clk 0:00:15.5]} 35... h3 {[%clk
0:00:49.6]} 36. b3 {[%clk 0:00:12.6]} 36... Kxg5 {[%clk 0:00:46.2]} 37. Rg1+
{[%clk 0:00:10.1]} 37... Kh4 {[%clk 0:00:46.3]} 38. Rg8 {[%clk 0:00:09.6]} 38...
h2 {[%clk 0:00:45]} 39. Rh8+ {[%clk 0:00:08.9]} 39... Kg3 {[%clk 0:00:45]} 40.
Kd6 {[%clk 0:00:08.6]} 40... Kg2 {[%clk 0:00:43.9]} 41. Rg8+ {[%clk 0:00:06.6]}
41... Kf1 {[%clk 0:00:44.2]} 42. Rh8 {[%clk 0:00:06.8]} 42... Kg1 {[%clk
0:00:44.4]} 43. Kc6 {[%clk 0:00:06.4]} 43... h1=Q+ {[%clk 0:00:44.4]} 44. Rxh1+
{[%clk 0:00:06]} 44... Kxh1 {[%clk 0:00:45.3]} 45. Kb7 {[%clk 0:00:06.9]} 45...
Rb2 {[%clk 0:00:45.6]} 46. Kxa7 {[%clk 0:00:06.8]} 46... Rxb3 {[%clk 0:00:46]}
0-1

[Event "*** Titled Tuesday Blitz"]
[Site "Chess.com"]
[Date "2020.11.24"]
[Round "2"]
[White "anon102030"]
[Black "yourstrulyme"]
[Result "1-0"]
[WhiteElo "2723"]
[BlackElo "2476"]
[TimeControl "180+1"]
[EndTime "10:33:23 PST"]
[Termination "anon102030 won by resignation"]

1. e4 {[%clk 0:03:00.9]} 1... c6 {[%clk 0:03:00.3]} 2. d3 {[%clk 0:03:00.2]}
2... d5 {[%clk 0:03:00.5]} 3. Nd2 {[%clk 0:03:00.8]} 3... e5 {[%clk 0:02:59.9]}
4. Ngf3 {[%clk 0:02:59.8]} 4... Bd6 {[%clk 0:02:59]} 5. g3 {[%clk 0:02:59.2]}
5... Nf6 {[%clk 0:02:58.8]} 6. Bg2 {[%clk 0:02:59.3]} 6... h6 {[%clk 0:02:56.9]}
7. O-O {[%clk 0:02:59]} 7... O-O {[%clk 0:02:56]} 8. b3 {[%clk 0:02:59.1]} 8...
Be6 {[%clk 0:02:55.7]} 9. Bb2 {[%clk 0:02:59.2]} 9... Nbd7 {[%clk 0:02:55.9]}
10. exd5 {[%clk 0:02:57.3]} 10... cxd5 {[%clk 0:02:54.3]} 11. Re1 {[%clk
0:02:58.2]} 11... Qc7 {[%clk 0:02:51.1]} 12. c4 {[%clk 0:02:54.7]} 12... d4
{[%clk 0:02:49.1]} 13. Ne4 {[%clk 0:02:43.2]} 13... Nxe4 {[%clk 0:02:48.2]} 14.
Rxe4 {[%clk 0:02:43.1]} 14... Nc5 {[%clk 0:02:34.2]} 15. Re2 {[%clk 0:02:37.5]}
15... Bf5 {[%clk 0:02:31.7]} 16. Ne1 {[%clk 0:02:37.1]} 16... a5 {[%clk
0:02:30]} 17. a3 {[%clk 0:02:35.3]} 17... Rfe8 {[%clk 0:02:25]} 18. b4 {[%clk
0:02:30.7]} 18... Nd7 {[%clk 0:02:01.2]} 19. c5 {[%clk 0:02:24.3]} 19... Bf8
{[%clk 0:02:00.9]} 20. Qb3 {[%clk 0:02:17.7]} 20... axb4 {[%clk 0:01:59.8]} 21.
axb4 {[%clk 0:02:16.5]} 21... Rxa1 {[%clk 0:01:59.6]} 22. Bxa1 {[%clk
0:02:17.4]} 22... Ra8 {[%clk 0:01:01.6]} 23. Bb2 {[%clk 0:02:08.3]} 23... Be6
{[%clk 0:01:01.7]} 24. Bd5 {[%clk 0:02:00.8]} 24... Bxd5 {[%clk 0:01:01.4]} 25.
Qxd5 {[%clk 0:02:01.1]} 25... Qc6 {[%clk 0:01:02]} 26. Qc4 {[%clk 0:01:54.9]}
26... b5 {[%clk 0:00:57.8]} 27. Qb3 {[%clk 0:01:51.9]} 27... Ra4 {[%clk
0:00:38.3]} 28. f4 {[%clk 0:01:38.2]} 28... exf4 {[%clk 0:00:31.2]} 29. gxf4
{[%clk 0:01:39.1]} 29... Qg6+ {[%clk 0:00:26.4]} 30. Ng2 {[%clk 0:01:33.6]}
30... Nf6 {[%clk 0:00:24.2]} 31. Bxd4 {[%clk 0:01:30.4]} 31... Nd5 {[%clk
0:00:24.4]} 32. Qxd5 {[%clk 0:01:26.2]} 32... Qxd3 {[%clk 0:00:22.9]} 33. Re8
{[%clk 0:00:49.8]} 33... Ra1+ {[%clk 0:00:19.7]} 34. Ne1 {[%clk 0:00:45.4]}
34... Kh7 {[%clk 0:00:09]} 35. Qe4+ {[%clk 0:00:30.7]} 35... Qxe4 {[%clk
0:00:07]} 36. Rxe4 {[%clk 0:00:31.6]} 36... Rb1 {[%clk 0:00:06.1]} 37. Bf2
{[%clk 0:00:30.1]} 37... f5 {[%clk 0:00:03.8]} 38. Re5 {[%clk 0:00:24.8]} 38...
Be7 {[%clk 0:00:03]} 1-0

[Event "*** Titled Tuesday Blitz"]
[Site "Chess.com"]
[Date "2020.11.24"]
[Round "2"]
[White "lifeissofun"]
[Black "J36225"]
[Result "0-1"]
[WhiteElo "2255"]
[BlackElo "2468"]
[TimeControl "180+1"]
[EndTime "10:33:23 PST"]
[Termination "J36225 won by resignation"]

1. e4 {[%clk 0:03:00.9]} 1... e5 {[%clk 0:02:59.5]} 2. Nf3 {[%clk 0:02:58.8]}
2... Nc6 {[%clk 0:02:59]} 3. Bb5 {[%clk 0:02:57.9]} 3... a6 {[%clk 0:02:58.6]}
4. Ba4 {[%clk 0:02:57.7]} 4... Nf6 {[%clk 0:02:58.5]} 5. O-O {[%clk 0:02:57.9]}
5... Nxe4 {[%clk 0:02:58.5]} 6. d4 {[%clk 0:02:57.6]} 6... b5 {[%clk 0:02:58.1]}
7. Bb3 {[%clk 0:02:51.4]} 7... d5 {[%clk 0:02:57.5]} 8. dxe5 {[%clk 0:02:49.8]}
8... Be6 {[%clk 0:02:56.7]} 9. Re1 {[%clk 0:02:49.5]} 9... Bc5 {[%clk
0:02:48.5]} 10. Be3 {[%clk 0:02:45.4]} 10... Bxe3 {[%clk 0:02:43.1]} 11. Rxe3
{[%clk 0:02:43.8]} 11... O-O {[%clk 0:02:36.4]} 12. Nc3 {[%clk 0:02:42.4]} 12...
Nxc3 {[%clk 0:02:13.6]} 13. Rxc3 {[%clk 0:02:43]} 13... Ne7 {[%clk 0:02:13.5]}
14. Nd4 {[%clk 0:02:40.9]} 14... Qd7 {[%clk 0:02:09.3]} 15. a4 {[%clk
0:02:40.2]} 15... b4 {[%clk 0:02:07.1]} 16. Rg3 {[%clk 0:02:31.5]} 16... c5
{[%clk 0:02:05.3]} 17. Nxe6 {[%clk 0:02:26.2]} 17... fxe6 {[%clk 0:02:04.9]} 18.
Qg4 {[%clk 0:02:26.1]} 18... Nf5 {[%clk 0:02:01.8]} 19. Rh3 {[%clk 0:02:21.3]}
19... Qf7 {[%clk 0:01:53.5]} 20. c3 {[%clk 0:02:18.1]} 20... bxc3 {[%clk
0:01:41.8]} 21. Rxc3 {[%clk 0:02:10.8]} 21... Nd4 {[%clk 0:01:37.7]} 22. Rf1
{[%clk 0:02:07.7]} 22... Nxb3 {[%clk 0:01:31.6]} 23. Rxb3 {[%clk 0:02:07.7]}
23... Rab8 {[%clk 0:01:32.2]} 24. Qg3 {[%clk 0:01:47.9]} 24... c4 {[%clk
0:01:19.8]} 25. Rxb8 {[%clk 0:01:43.6]} 25... Rxb8 {[%clk 0:01:18.9]} 26. Qc3
{[%clk 0:01:44.5]} 26... Qb7 {[%clk 0:01:16.2]} 27. Qa5 {[%clk 0:01:37.8]} 27...
Qxb2 {[%clk 0:01:09.7]} 28. Qxa6 {[%clk 0:01:37.5]} 28... Qb6 {[%clk 0:01:08.8]}
29. Qxb6 {[%clk 0:01:18.5]} 29... Rxb6 {[%clk 0:01:09.7]} 30. a5 {[%clk
0:01:12]} 30... Ra6 {[%clk 0:01:09.1]} 31. Ra1 {[%clk 0:01:12.9]} 31... Kf7
{[%clk 0:01:05.1]} 32. f4 {[%clk 0:01:09.8]} 32... Ke7 {[%clk 0:01:05.1]} 33.
Kf2 {[%clk 0:01:10]} 33... Kd7 {[%clk 0:01:05.3]} 34. Ke3 {[%clk 0:01:10.1]}
34... Kc6 {[%clk 0:01:03.2]} 35. Kd4 {[%clk 0:01:10.5]} 35... g6 {[%clk
0:01:01.6]} 36. g4 {[%clk 0:01:10.1]} 36... Kb5 {[%clk 0:00:54.2]} 37. f5 {[%clk
0:01:10.1]} 37... gxf5 {[%clk 0:00:53.5]} 38. gxf5 {[%clk 0:01:10.2]} 38... exf5
{[%clk 0:00:53.8]} 39. Kxd5 {[%clk 0:01:09.4]} 39... c3 {[%clk 0:00:53.1]} 40.
Kd4 {[%clk 0:01:04.2]} 40... c2 {[%clk 0:00:50.8]} 41. Kd3 {[%clk 0:01:04.2]}
41... Rxa5 {[%clk 0:00:42.7]} 42. Rxa5+ {[%clk 0:00:39.8]} 42... Kxa5 {[%clk
0:00:43.6]} 43. Kxc2 {[%clk 0:00:40.4]} 43... Kb5 {[%clk 0:00:43.3]} 44. Kd3
{[%clk 0:00:40.9]} 44... Kc5 {[%clk 0:00:43.3]} 45. Ke3 {[%clk 0:00:41.5]} 45...
Kd5 {[%clk 0:00:41.1]} 46. Kf4 {[%clk 0:00:40.9]} 46... Ke6 {[%clk 0:00:41.3]}
47. h3 {[%clk 0:00:37.8]} 47... h6 {[%clk 0:00:41.1]} 48. h4 {[%clk 0:00:37.2]}
48... h5 {[%clk 0:00:40.6]} 49. Kg5 {[%clk 0:00:37.8]} 49... Kxe5 {[%clk
0:00:40.8]} 50. Kxh5 {[%clk 0:00:38.7]} 50... f4 {[%clk 0:00:41.7]} 51. Kg4
{[%clk 0:00:37.9]} 51... Ke4 {[%clk 0:00:42]} 52. h5 {[%clk 0:00:38.5]} 52... f3
{[%clk 0:00:42.3]} 53. h6 {[%clk 0:00:39.4]} 53... f2 {[%clk 0:00:42.5]} 54. h7
{[%clk 0:00:40.3]} 54... f1=Q {[%clk 0:00:41.7]} 55. h8=Q {[%clk 0:00:41.2]}
55... Qg1+ {[%clk 0:00:41.5]} 56. Kh5 {[%clk 0:00:40.9]} 56... Qh1+ {[%clk
0:00:41.6]} 57. Kg6 {[%clk 0:00:41.7]} 57... Qxh8 {[%clk 0:00:42.4]} 0-1

[Event "*** Titled Tuesday Blitz"]
[Site "Chess.com"]
[Date "2020.11.24"]
[Round "2"]
[White "Aleksey_Sorokin"]
[Black "VSERGUEI"]
[Result "1-0"]
[WhiteElo "2814"]
[BlackElo "2513"]
[TimeControl "180+1"]
[EndTime "10:33:26 PST"]
[Termination "Aleksey_Sorokin won on time"]

1. d4 {[%clk 0:03:00.9]} 1... d5 {[%clk 0:02:59.4]} 2. c4 {[%clk 0:02:59.7]}
2... c6 {[%clk 0:02:59.6]} 3. Nf3 {[%clk 0:02:59.6]} 3... Nf6 {[%clk 0:02:59.8]}
4. e3 {[%clk 0:02:59.6]} 4... Bf5 {[%clk 0:02:59]} 5. Nc3 {[%clk 0:02:59.6]}
5... e6 {[%clk 0:02:59.3]} 6. Nh4 {[%clk 0:02:59.5]} 6... Bg6 {[%clk 0:02:59.6]}
7. Nxg6 {[%clk 0:02:58.3]} 7... hxg6 {[%clk 0:03:00.5]} 8. Bd3 {[%clk
0:02:57.4]} 8... Nbd7 {[%clk 0:03:00.5]} 9. O-O {[%clk 0:02:55.7]} 9... Bd6
{[%clk 0:02:59.7]} 10. h3 {[%clk 0:02:55.3]} 10... Qe7 {[%clk 0:02:59.1]} 11. c5
{[%clk 0:02:53.8]} 11... Bc7 {[%clk 0:02:58.3]} 12. f4 {[%clk 0:02:54]} 12...
O-O {[%clk 0:02:32.8]} 13. b4 {[%clk 0:02:46.7]} 13... b6 {[%clk 0:02:24.9]} 14.
Bd2 {[%clk 0:02:44.6]} 14... a5 {[%clk 0:02:12.5]} 15. a3 {[%clk 0:02:41.4]}
15... axb4 {[%clk 0:02:00.6]} 16. axb4 {[%clk 0:02:40.7]} 16... bxc5 {[%clk
0:02:00.5]} 17. bxc5 {[%clk 0:02:39.4]} 17... Ba5 {[%clk 0:02:00.5]} 18. Qc2
{[%clk 0:02:26.6]} 18... Nh5 {[%clk 0:01:52.8]} 19. Rfe1 {[%clk 0:02:10.3]}
19... Qh4 {[%clk 0:01:39.5]} 20. Reb1 {[%clk 0:01:55.2]} 20... Ng3 {[%clk
0:01:12.2]} 21. Be1 {[%clk 0:01:47.9]} 21... Bxc3 {[%clk 0:01:03]} 22. Qxc3
{[%clk 0:01:41.7]} 22... g5 {[%clk 0:01:02.8]} 23. Kh2 {[%clk 0:01:10.7]} 23...
Nf6 {[%clk 0:00:24.8]} 24. Rxa8 {[%clk 0:00:48.7]} 24... Rxa8 {[%clk 0:00:13.1]}
25. Bxg3 {[%clk 0:00:41.8]} 25... Ng4+ {[%clk 0:00:11.9]} 26. Kh1 {[%clk
0:00:41.7]} 26... Qxg3 {[%clk 0:00:11.1]} 27. hxg4 {[%clk 0:00:40.9]} 27... g6
{[%clk 0:00:05.2]} 28. Qe1 {[%clk 0:00:33.2]} 28... Qxg4 {[%clk 0:00:05.1]} 29.
fxg5 {[%clk 0:00:31.3]} 29... Kg7 {[%clk 0:00:03.5]} 30. Qf2 {[%clk 0:00:25.2]}
30... Qxg5 {[%clk 0:00:03.1]} 31. Rf1 {[%clk 0:00:16.7]} 31... f5 {[%clk
0:00:02.6]} 32. Qf4 {[%clk 0:00:16.6]} 32... Qxf4 {[%clk 0:00:02.3]} 33. exf4
{[%clk 0:00:16.8]} 33... Ra4 {[%clk 0:00:02]} 34. Re1 {[%clk 0:00:13.5]} 1-0

[Event "*** Titled Tuesday Blitz"]
[Site "Chess.com"]
[Date "2020.11.24"]
[Round "2"]
[White "EdmundPlayer"]
[Black "Dinamo3"]
[Result "1/2-1/2"]
[WhiteElo "2127"]
[BlackElo "2398"]
[TimeControl "180+1"]
[EndTime "10:33:27 PST"]
[Termination "Game drawn by repetition"]

1. e4 {[%clk 0:03:00.9]} 1... c5 {[%clk 0:02:59.7]} 2. Nf3 {[%clk 0:03:00.8]}
2... d6 {[%clk 0:03:00.1]} 3. d4 {[%clk 0:02:59.3]} 3... cxd4 {[%clk 0:03:01]}
4. Nxd4 {[%clk 0:02:58.9]} 4... Nf6 {[%clk 0:03:01.4]} 5. Nc3 {[%clk 0:02:59.3]}
5... a6 {[%clk 0:03:01.9]} 6. h3 {[%clk 0:02:59.5]} 6... e5 {[%clk 0:03:01.9]}
7. Nde2 {[%clk 0:02:58.7]} 7... b5 {[%clk 0:03:02.4]} 8. g4 {[%clk 0:02:58.9]}
8... b4 {[%clk 0:03:01.6]} 9. Nd5 {[%clk 0:02:58.3]} 9... Nxd5 {[%clk
0:03:02.1]} 10. exd5 {[%clk 0:02:58.3]} 10... g6 {[%clk 0:02:56.3]} 11. Bg2
{[%clk 0:02:37.8]} 11... Bg7 {[%clk 0:02:56]} 12. Be3 {[%clk 0:02:29.1]} 12...
O-O {[%clk 0:02:52.6]} 13. Qd2 {[%clk 0:02:27.8]} 13... f5 {[%clk 0:02:45.6]}
14. gxf5 {[%clk 0:02:19.5]} 14... gxf5 {[%clk 0:02:45.8]} 15. f4 {[%clk
0:02:00.6]} 15... e4 {[%clk 0:02:22.1]} 16. Qxb4 {[%clk 0:01:31.6]} 16... a5
{[%clk 0:02:18.7]} 17. Qd2 {[%clk 0:01:16.1]} 17... Bxb2 {[%clk 0:02:12.6]} 18.
Rb1 {[%clk 0:01:15.5]} 18... Bf6 {[%clk 0:02:12.4]} 19. O-O {[%clk 0:01:13]}
19... Na6 {[%clk 0:02:08.6]} 20. Bb6 {[%clk 0:00:53.8]} 20... Qe8 {[%clk
0:02:00.1]} 21. Bxa5 {[%clk 0:00:52.2]} 21... Qa4 {[%clk 0:01:28.9]} 22. Bc3
{[%clk 0:00:49.1]} 22... Qxa2 {[%clk 0:01:28.1]} 23. Bxf6 {[%clk 0:00:48.5]}
23... Rxf6 {[%clk 0:01:28.5]} 24. Qc3 {[%clk 0:00:38.8]} 24... Rg6 {[%clk
0:01:24.1]} 25. Qc6 {[%clk 0:00:34.3]} 25... Nc5 {[%clk 0:00:54.6]} 26. Ra1
{[%clk 0:00:33.1]} 26... Qxa1 {[%clk 0:00:52]} 27. Rxa1 {[%clk 0:00:34]} 27...
Rxa1+ {[%clk 0:00:51.9]} 28. Kh2 {[%clk 0:00:33.7]} 28... Bd7 {[%clk 0:00:50.4]}
29. Qc7 {[%clk 0:00:30.8]} 29... Re1 {[%clk 0:00:39.3]} 30. Nd4 {[%clk
0:00:28.2]} 30... Rd1 {[%clk 0:00:37.1]} 31. Qd8+ {[%clk 0:00:27.3]} 31... Kf7
{[%clk 0:00:37.1]} 32. Ne6 {[%clk 0:00:15.8]} 32... Nxe6 {[%clk 0:00:24]} 33.
Qxd7+ {[%clk 0:00:13]} 33... Kf6 {[%clk 0:00:12.9]} 34. Qxe6+ {[%clk 0:00:11.2]}
34... Kg7 {[%clk 0:00:13.3]} 35. Qe7+ {[%clk 0:00:10.9]} 35... Kh6 {[%clk
0:00:13.9]} 36. Qh4+ {[%clk 0:00:10.7]} 36... Kg7 {[%clk 0:00:14.2]} 37. Qe7+
{[%clk 0:00:09.5]} 37... Kg8 {[%clk 0:00:14.7]} 38. Qe8+ {[%clk 0:00:06.8]}
38... Kg7 {[%clk 0:00:15.2]} 39. Qe7+ {[%clk 0:00:06.7]} 1/2-1/2

[Event "*** Titled Tuesday Blitz"]
[Site "Chess.com"]
[Date "2020.11.24"]
[Round "2"]
[White "Chernobay_Artem"]
[Black "Itk04"]
[Result "0-1"]
[WhiteElo "2692"]
[BlackElo "2495"]
[TimeControl "180+1"]
[EndTime "10:33:28 PST"]
[Termination "Itk04 won by resignation"]

1. d4 {[%clk 0:03:00.9]} 1... Nf6 {[%clk 0:02:58.1]} 2. c4 {[%clk 0:03:00.2]}
2... e6 {[%clk 0:02:58.7]} 3. Nf3 {[%clk 0:02:58.6]} 3... b6 {[%clk 0:02:47]} 4.
g3 {[%clk 0:02:57.9]} 4... Ba6 {[%clk 0:02:46.6]} 5. b3 {[%clk 0:02:56.2]} 5...
Bb4+ {[%clk 0:02:47]} 6. Bd2 {[%clk 0:02:55.9]} 6... Be7 {[%clk 0:02:47.6]} 7.
Bg2 {[%clk 0:02:55.5]} 7... O-O {[%clk 0:02:46.6]} 8. Bc3 {[%clk 0:02:54.5]}
8... d5 {[%clk 0:02:46.7]} 9. Nbd2 {[%clk 0:02:47.4]} 9... Nbd7 {[%clk
0:02:40.6]} 10. Ne5 {[%clk 0:02:41.9]} 10... Bb7 {[%clk 0:02:28.2]} 11. O-O
{[%clk 0:02:25.9]} 11... c6 {[%clk 0:02:23.3]} 12. e4 {[%clk 0:02:24.2]} 12...
Nxe5 {[%clk 0:02:14.8]} 13. dxe5 {[%clk 0:02:24.7]} 13... Nxe4 {[%clk 0:02:15]}
14. Nxe4 {[%clk 0:02:24.5]} 14... dxe4 {[%clk 0:02:15.6]} 15. Bxe4 {[%clk
0:02:24.5]} 15... Qxd1 {[%clk 0:02:12.8]} 16. Raxd1 {[%clk 0:02:23.5]} 16...
Rfd8 {[%clk 0:02:13.1]} 17. f4 {[%clk 0:02:19.8]} 17... g6 {[%clk 0:02:12.5]}
18. Kf2 {[%clk 0:02:19.4]} 18... Kf8 {[%clk 0:02:06.3]} 19. Kf3 {[%clk 0:02:18]}
19... h5 {[%clk 0:02:05.9]} 20. h3 {[%clk 0:02:15.8]} 20... Rxd1 {[%clk
0:01:49.3]} 21. Rxd1 {[%clk 0:02:14.3]} 21... Rd8 {[%clk 0:01:49.6]} 22. Rxd8+
{[%clk 0:02:04.9]} 22... Bxd8 {[%clk 0:01:50.5]} 23. Bb4+ {[%clk 0:02:04.8]}
23... Ke8 {[%clk 0:01:38.8]} 24. Bd6 {[%clk 0:02:00.5]} 24... Kd7 {[%clk
0:01:34.9]} 25. b4 {[%clk 0:02:00.2]} 25... Ba6 {[%clk 0:01:30.8]} 26. Bd3
{[%clk 0:01:53.1]} 26... Be7 {[%clk 0:01:26.3]} 27. Ke3 {[%clk 0:01:52.2]} 27...
Bxd6 {[%clk 0:01:26]} 28. exd6 {[%clk 0:01:50.5]} 28... c5 {[%clk 0:01:25.6]}
29. b5 {[%clk 0:01:47]} 29... Bb7 {[%clk 0:01:25.2]} 30. g4 {[%clk 0:01:35.7]}
30... hxg4 {[%clk 0:01:21]} 31. hxg4 {[%clk 0:01:35.8]} 31... Kxd6 {[%clk
0:01:21.5]} 32. g5 {[%clk 0:01:35.7]} 32... a5 {[%clk 0:00:57.7]} 33. a3 {[%clk
0:01:26.5]} 33... Bg2 {[%clk 0:00:55.8]} 34. Be2 {[%clk 0:01:11.8]} 34... e5
{[%clk 0:00:52.4]} 35. Bd3 {[%clk 0:01:11]} 35... Ke6 {[%clk 0:00:44.7]} 36. Kf2
{[%clk 0:01:06.2]} 36... Bh3 {[%clk 0:00:21.2]} 37. Ke3 {[%clk 0:01:05.8]} 37...
Bf5 {[%clk 0:00:20.6]} 38. Be2 {[%clk 0:01:05.6]} 38... f6 {[%clk 0:00:19.3]}
39. Bf3 {[%clk 0:01:00]} 39... exf4+ {[%clk 0:00:14.1]} 40. Kxf4 {[%clk
0:01:00.3]} 40... fxg5+ {[%clk 0:00:15]} 41. Kxg5 {[%clk 0:01:01.2]} 41... Ke5
{[%clk 0:00:15.6]} 42. Bd5 {[%clk 0:01:01.3]} 42... Kd4 {[%clk 0:00:15.6]} 43.
Kf6 {[%clk 0:01:01]} 43... Bd3 {[%clk 0:00:15.2]} 44. Ke7 {[%clk 0:01:00.7]}
44... g5 {[%clk 0:00:14.1]} 45. Kd6 {[%clk 0:00:59.2]} 45... Bxc4 {[%clk
0:00:08]} 46. Bf3 {[%clk 0:00:57.9]} 46... Bxb5 {[%clk 0:00:06.8]} 47. Kc7
{[%clk 0:00:58.1]} 47... Bd3 {[%clk 0:00:05.7]} 48. Kxb6 {[%clk 0:00:58.2]}
48... a4 {[%clk 0:00:06.2]} 49. Ka5 {[%clk 0:00:55.4]} 49... Bc2 {[%clk
0:00:06.8]} 50. Kb5 {[%clk 0:00:51.7]} 50... Bb3 {[%clk 0:00:07.3]} 51. Be2
{[%clk 0:00:49.3]} 51... c4 {[%clk 0:00:07.8]} 0-1